bitfinex-derivatives/quotes_BTCF0:USTF0_20240902
["timestamp","ask_amount","ask_price","bid_price","bid_amount"]
[1725277488765,0.44196356,58515.0,58514.0,0.09394799]
[1725277489559,0.48380956,58515.0,58514.0,0.09394799]
[1725277492061,0.39836656,58515.0,58514.0,0.09394799]
[1725277492454,0.39836656,58515.0,58514.0,0.17939299]
[1725277494769,0.38436656,58515.0,58514.0,0.17939299]
[1725277495067,0.39036656,58515.0,58514.0,0.17939299]
[1725277496870,0.39036657,58515.0,58514.0,0.82939299]
[1725277497164,0.39036657,58515.0,58514.0,0.83039299]
[1725277497165,0.39536657,58515.0,58514.0,0.83039299]
[1725277497371,0.39536657,58515.0,58514.0,0.18039299]
[1725277497573,0.35352056,58515.0,58514.0,0.18039299]
[1725277498070,0.34652056,58515.0,58514.0,0.17939299]
[1725277499672,0.34752056,58515.0,58514.0,0.09039299]
[1725277499876,0.34752056,58515.0,58514.0,0.18039299]
[1725277500371,0.005,58515.0,58514.0,0.26583799]
[1725277500569,0.005,58515.0,58514.0,0.38353799]
[1725277500766,0.005,58515.0,58514.0,0.44033799]
[1725277502762,0.005,58515.0,58514.0,0.38353799]
[1725277502965,0.005,58515.0,58514.0,0.18039299]
[1725277503773,0.34752056,58515.0,58514.0,0.00494799]
[1725277503972,0.43296356,58515.0,58514.0,0.00494799]
[1725277504672,0.43296356,58515.0,58514.0,0.09494799]
[1725277505370,0.43296356,58515.0,58514.0,0.00494799]
[1725277505565,0.43296356,58515.0,58514.0,0.09494799]
[1725277510584,0.43296356,58515.0,58514.0,0.00494799]
[1725277511485,0.79376356,58515.0,58514.0,0.00494799]
[1725277515784,0.79376356,58515.0,58514.0,0.09039299]
[1725277516782,0.921056,58515.0,58514.0,0.00494799]
[1725277519579,0.87920656,58515.0,58514.0,0.00494799]
[1725277519879,0.87920656,58515.0,58514.0,0.09039299]
[1725277520579,0.51840656,58515.0,58514.0,0.09039299]
[1725277522173,0.51268,58514.0,58502.0,0.03549994]
[1725277522378,0.175861,58503.0,58497.0,0.03549994]
[1725277522683,0.085467,58499.0,58498.0,0.21569396]
[1725277522877,0.085467,58499.0,58498.0,0.08543741]
[1725277523078,0.085468,58498.0,58497.0,0.085469]
[1725277523277,0.085868,58498.0,58497.0,0.085469]
[1725277523485,0.079868,58498.0,58497.0,0.085469]
[1725277523886,0.08547,58497.0,58496.0,0.17543741]
[1725277524076,0.08587,58497.0,58496.0,0.09]
[1725277524582,0.08587,58497.0,58496.0,0.17543741]
[1725277524787,0.08587,58497.0,58496.0,0.26090841]
[1725277525083,0.08587,58497.0,58496.0,0.09]
[1725277526479,0.08687,58497.0,58496.0,0.09]
[1725277530681,0.08687,58497.0,58496.0,0.175471]
[1725277531391,0.0014,58497.0,58496.0,0.175471]
[1725277533286,0.085473,58495.0,58494.0,0.05116351]
[1725277533483,0.085474,58494.0,58493.0,0.23025164]
[1725277533785,0.085474,58494.0,58493.0,0.17908813]
[1725277533987,0.085474,58494.0,58493.0,0.09361313]
[1725277535388,0.086474,58494.0,58493.0,0.09361313]
[1725277536289,0.086474,58494.0,58493.0,0.00361313]
[1725277536290,0.257422,58494.0,58493.0,0.00361313]
[1725277536593,0.086474,58494.0,58493.0,0.0511337]
[1725277536792,0.171948,58494.0,58493.0,0.0511337]
[1725277538091,0.170948,58494.0,58493.0,0.0511337]
[1725277538486,0.170952,58493.0,58492.0,0.05468994]
[1725277538699,0.171352,58493.0,58492.0,0.0511337]
[1725277539691,0.08548,58490.0,58489.0,0.07178261]
[1725277539891,0.04311001,58490.0,58489.0,0.07178261]
[1725277541896,0.04411001,58490.0,58489.0,0.07178261]
[1725277542688,0.04411001,58490.0,58489.0,0.00360618]
[1725277542894,0.085481,58489.0,58488.0,0.42897643]
[1725277543095,0.085881,58489.0,58488.0,0.42897643]
[1725277543295,0.085881,58489.0,58488.0,0.06817643]
[1725277543992,0.085881,58489.0,58488.0,0.07178235]
[1725277544192,0.085881,58489.0,58488.0,0.00360592]
[1725277544193,0.086881,58489.0,58488.0,0.00360592]
[1725277544395,0.086881,58489.0,58486.0,0.537726]
[1725277544396,0.085484,58487.0,58486.0,0.537726]
[1725277544594,0.085484,58487.0,58486.0,0.536286]
[1725277544902,0.085884,58487.0,58486.0,0.536286]
[1725277545496,0.171368,58487.0,58486.0,0.4508]
[1725277545703,0.085487,58485.0,58481.0,0.17092941]
[1725277545897,0.085892,58482.0,58481.0,0.085492]
[1725277546095,0.085892,58482.0,58480.0,0.12174628]
[1725277546096,0.085493,58481.0,58480.0,0.12174628]
[1725277546295,0.085893,58481.0,58480.0,0.12174628]
[1725277546604,0.085893,58481.0,58480.0,0.20724128]
[1725277548192,0.086893,58481.0,58480.0,0.20724128]
[1725277549500,0.0014,58481.0,58480.0,0.20724128]
[1725277555204,0.0014,58481.0,58480.0,0.08904128]
[1725277563207,0.0014,58481.0,58480.0,0.17447869]
[1725277563403,0.0014,58481.0,58480.0,0.30476857]
[1725277563907,0.0014,58481.0,58480.0,0.30933116]
[1725277564709,0.0014,58481.0,58480.0,0.17904128]
[1725277566597,0.0014,58481.0,58480.0,0.26453628]
[1725277572811,0.0014,58481.0,58480.0,0.49705281]
[1725277574305,0.0014,58481.0,58480.0,0.66804281]
[1725277574513,0.0004,58495.0,58494.0,0.085474]
[1725277574711,0.085873,58495.0,58494.0,0.0687823]
[1725277574911,0.0004,58495.0,58494.0,0.0004]
[1725277575113,0.085873,58495.0,58494.0,0.0004]
[1725277575520,0.5129,58496.0,58494.0,0.0004]
[1725277575721,0.5129,58496.0,58495.0,0.06876826]
[1725277576137,0.5129,58496.0,58495.0,0.0004]
[1725277577522,0.1521,58496.0,58495.0,0.085873]
[1725277577826,0.5239,58496.0,58495.0,0.086873]
[1725277578020,0.5239,58496.0,58495.0,0.09049393]
[1725277578323,0.4339,58496.0,58495.0,0.09049393]
[1725277578824,0.011,58496.0,58495.0,0.09049393]
[1725277579024,0.00025642,58500.0,58499.0,0.085467]
[1725277579324,0.00025642,58500.0,58499.0,0.75229939]
[1725277579514,0.00025642,58500.0,58499.0,0.536667]
[1725277579710,0.18060554,58514.0,58512.0,0.085448]
[1725277579929,0.0611,58514.0,58513.0,0.0004]
[1725277581223,0.0751,58514.0,58513.0,0.0014]
[1725277581623,0.0751,58514.0,58513.0,0.086846]
[1725277582427,0.014,58514.0,58513.0,0.086846]
[1725277584530,0.11950554,58518.0,58517.0,0.08544]
[1725277584730,0.11950554,58518.0,58517.0,0.17584]
[1725277586536,0.00025642,58519.0,58518.0,0.085439]
[1725277586831,0.00025642,58519.0,58518.0,0.085839]
[1725277588236,0.00925642,58519.0,58518.0,0.086839]
[1725277590429,0.01025642,58519.0,58518.0,0.086839]
[1725277595433,0.05209958,58519.0,58518.0,0.086839]
[1725277601739,0.05209929,58519.0,58518.0,0.086839]
[1725277602446,0.10454649,58519.0,58518.0,0.086839]
[1725277603147,0.01025642,58519.0,58518.0,0.086839]
[1725277610340,0.05209628,58519.0,58518.0,0.086839]
[1725277610544,0.05209628,58519.0,58518.0,0.172278]
[1725277613562,0.05209628,58519.0,58518.0,1.455796]
[1725277613854,0.13665197,58523.0,58522.0,0.085433]
[1725277614060,0.0617,58538.0,58523.0,0.170864]
[1725277614061,0.13665197,58525.0,58523.0,0.170864]
[1725277614247,0.13663793,58526.0,58525.0,0.085429]
[1725277614446,0.13663793,58526.0,58525.0,0.175829]
[1725277614647,0.13663793,58526.0,58525.0,0.175429]
[1725277614951,0.15377244,58531.0,58525.0,1.458887]
[1725277615151,0.15351602,58536.0,58535.0,0.085414]
[1725277615363,0.3608,58539.0,58538.0,0.08541]
[1725277615559,0.41323073,58539.0,58538.0,0.17581]
[1725277615756,0.3608,58539.0,58538.0,0.17541]
[1725277616455,0.57627244,58544.0,58543.0,0.085403]
[1725277616754,0.47518562,58544.0,58543.0,0.085803]
[1725277617554,0.42275642,58544.0,58543.0,0.085803]
[1725277617756,0.06195642,58544.0,58543.0,0.085803]
[1725277618351,0.06195642,58544.0,58543.0,0.086803]
[1725277618947,0.00025642,58544.0,58543.0,0.086803]
[1725277619448,0.00025642,58544.0,58543.0,0.447603]
[1725277620859,0.00025642,58544.0,58543.0,0.536603]
[1725277621753,0.00025642,58544.0,58543.0,0.538603]
[1725277623362,0.00025642,58544.0,58543.0,0.536603]
[1725277626980,0.17565742,58544.0,58543.0,0.0004]
[1725277627182,0.17565742,58544.0,58538.0,0.00352362]
[1725277627183,0.170816,58539.0,58538.0,0.00352362]
[1725277627480,0.085416,58534.0,58533.0,0.00025642]
[1725277627677,0.532032,58534.0,58533.0,0.00025642]
[1725277627881,0.532032,58534.0,58533.0,0.00377323]
[1725277628080,0.446616,58534.0,58533.0,0.00025642]
[1725277628872,0.446616,58534.0,58533.0,0.00125642]
[1725277630375,0.959136,58534.0,58533.0,0.00125642]
[1725277632781,0.085816,58534.0,58533.0,0.00125642]
[1725277633376,0.20510915,58534.0,58533.0,0.00125642]
[1725277633582,0.085816,58534.0,58533.0,0.00125642]
[1725277634084,0.20487407,58534.0,58533.0,0.00125642]
[1725277634280,0.085816,58534.0,58533.0,0.00125642]
[1725277634589,0.12765251,58534.0,58533.0,0.00125642]
[1725277635091,0.04223651,58534.0,58533.0,0.08667342]
[1725277635275,0.0004,58534.0,58533.0,0.08667342]
[1725277636885,0.04223422,58534.0,58533.0,0.08567342]
[1725277637082,0.04223422,58534.0,58533.0,0.08667342]
[1725277637787,0.04223422,58534.0,58533.0,0.08567342]
[1725277637788,0.40303422,58534.0,58533.0,0.08567342]
[1725277637983,0.04223422,58534.0,58533.0,0.08667342]
[1725277638175,0.40303422,58534.0,58533.0,0.08667342]
[1725277638685,0.5389589,58534.0,58533.0,0.08667342]
[1725277640386,0.3612,58534.0,58533.0,0.08667342]
[1725277640891,0.3612,58534.0,58533.0,0.13769437]
[1725277641087,0.0004,58534.0,58533.0,0.13769437]
[1725277641487,0.0004,58534.0,58533.0,0.08667342]
[1725277641790,0.0004,58534.0,58533.0,0.08567342]
[1725277642485,0.0004,58534.0,58533.0,0.13665921]
[1725277643191,0.0004,58534.0,58533.0,0.13765921]
[1725277644081,0.085816,58534.0,58533.0,0.05224221]
[1725277644278,0.085816,58534.0,58533.0,0.00125642]
[1725277644279,1.369168,58534.0,58533.0,0.00125642]
[1725277644484,1.369168,58534.0,58526.0,0.05098579]
[1725277644485,0.085426,58527.0,58526.0,0.05098579]
[1725277644680,0.5212,58527.0,58524.0,0.05098579]
[1725277644989,0.085433,58522.0,58521.0,0.06802793]
[1725277645178,0.085435,58521.0,58520.0,0.15346393]
[1725277645379,0.085435,58521.0,58520.0,0.085436]
[1725277645380,0.085835,58521.0,58520.0,0.085436]
[1725277645889,0.085435,58521.0,58520.0,0.085436]
[1725277647192,0.085435,58521.0,58520.0,0.091436]
[1725277647890,0.085435,58521.0,58520.0,0.085436]
[1725277648192,0.087435,58521.0,58520.0,0.001]
[1725277648594,0.002,58521.0,58520.0,0.001]
[1725277649590,0.17287,58521.0,58520.0,0.001]
[1725277649794,0.170872,58520.0,58519.0,0.0035525]
[1725277649989,0.085441,58517.0,58515.0,0.00025642]
[1725277650298,0.606242,58516.0,58515.0,0.00025642]
[1725277650687,1.888806,58516.0,58515.0,0.00379256]
[1725277650886,0.085461,58503.0,58501.0,0.3608]
[1725277651086,0.085461,58503.0,58501.0,0.446264]
[1725277651087,0.0004,58502.0,58501.0,0.446264]
[1725277651405,0.0004,58502.0,58496.0,0.00136]
[1725277651587,0.0004,58502.0,58491.0,0.3608]
[1725277651588,0.085477,58493.0,58491.0,0.3608]
[1725277651789,0.0004,58492.0,58491.0,0.3608]
[1725277652194,0.0004,58492.0,58491.0,0.446278]
[1725277652991,0.0004,58492.0,58491.0,0.3608]
[1725277653592,0.0004,58492.0,58491.0,0.3668]
[1725277653989,0.0004,58492.0,58491.0,0.37031905]
[1725277655295,0.0851928,58492.0,58491.0,0.37031905]
[1725277657898,0.1706698,58492.0,58491.0,0.37031905]
[1725277658202,1.6443498,58492.0,58491.0,0.00951905]
[1725277662296,1.6443498,58492.0,58491.0,0.006]
[1725277662498,1.7298268,58492.0,58491.0,0.006]
[1725277662905,1.2169468,58492.0,58491.0,0.006]
[1725277663399,1.2169468,58492.0,58486.0,0.00025642]
[1725277663400,0.170968,58487.0,58486.0,0.00025642]
[1725277663603,0.532168,58487.0,58486.0,0.00025642]
[1725277665907,0.533168,58487.0,58486.0,0.01125642]
[1725277666304,0.447684,58487.0,58486.0,0.01125642]
[1725277666608,0.446684,58487.0,58486.0,0.00025642]
[1725277667604,0.532168,58487.0,58486.0,0.00025642]
[1725277668913,0.171368,58487.0,58486.0,0.00025642]
[1725277669115,0.532168,58487.0,58486.0,0.00025642]
[1725277670602,0.446684,58487.0,58486.0,0.00025642]
[1725277671913,0.3612,58487.0,58486.0,0.08574242]
[1725277672219,0.30131711,58487.0,58486.0,0.18394242]
[1725277672713,0.30131711,58487.0,58486.0,0.23492799]
[1725277673106,0.085476,58493.0,58486.0,0.23492799]
[1725277673107,0.085476,58493.0,58490.0,0.085479]
[1725277673410,0.52105642,58498.0,58492.0,0.0004]
[1725277673710,0.41167,58497.0,58496.0,0.0004]
[1725277675311,0.49714,58497.0,58496.0,0.0004]
[1725277675614,1.60998,58497.0,58496.0,0.0004]
[1725277676204,1.69545,58497.0,58496.0,0.0004]
[1725277676610,1.70245,58497.0,58496.0,0.0014]
[1725277677304,1.81245,58497.0,58496.0,0.0014]
[1725277677908,1.29961,58497.0,58496.0,0.0014]
[1725277678513,1.48625,58497.0,58496.0,0.0014]
[1725277680418,2.20785,58497.0,58496.0,0.0014]
[1725277681617,2.20785,58497.0,58496.0,0.06942793]
[1725277682717,1.69501,58497.0,58496.0,0.06942793]
[1725277682918,1.60785,58497.0,58496.0,0.06942793]
[1725277683316,2.20785,58497.0,58496.0,0.06942793]
[1725277683518,1.09501,58497.0,58496.0,0.06942793]
[1725277683714,2.20785,58497.0,58496.0,0.06942793]
[1725277683908,1.09501,58497.0,58496.0,0.06942793]
[1725277684210,2.20785,58497.0,58496.0,0.06942793]
[1725277684411,1.09501,58497.0,58496.0,0.06942793]
[1725277684616,2.20785,58497.0,58496.0,0.06942793]
[1725277684913,0.73421,58497.0,58496.0,0.06942793]
[1725277685219,1.84705,58497.0,58496.0,0.06942793]
[1725277685416,1.84705,58497.0,58496.0,0.0014]
[1725277687310,0.73421,58497.0,58496.0,0.0014]
[1725277693516,0.73421,58497.0,58496.0,0.06942793]
[1725277693905,0.64874,58497.0,58496.0,0.06942793]
[1725277694107,0.53874,58497.0,58496.0,0.15489893]
[1725277694316,0.53874,58497.0,58496.0,0.086871]
[1725277695718,0.53874,58497.0,58496.0,0.0014]
[1725277696113,0.62421,58497.0,58496.0,0.06967202]
[1725277696312,0.75421,58497.0,58496.0,0.0696728]
[1725277696511,0.75421,58497.0,58496.0,0.0014]
[1725277697311,0.79971,58497.0,58496.0,0.0014]
[1725277701617,0.88518,58497.0,58496.0,0.0014]
[1725277701915,0.97518,58497.0,58496.0,0.0014]
[1725277703022,1.48802,58497.0,58496.0,0.0014]
[1725277703218,1.53522,58497.0,58496.0,0.0014]
[1725277703820,1.44975,58497.0,58496.0,0.0014]
[1725277704325,1.40255,58497.0,58496.0,0.0014]
[1725277704721,1.48802,58497.0,58496.0,0.0014]
[1725277704915,1.35705,58497.0,58496.0,0.0014]
[1725277705116,1.44252,58497.0,58496.0,0.0014]
[1725277705316,1.36070205,58497.0,58496.0,0.0014]
[1725277705728,0.84786205,58497.0,58496.0,0.0014]
[1725277706114,1.20866205,58497.0,58496.0,0.0014]
[1725277707623,0.48706205,58497.0,58496.0,0.0014]
[1725277707831,1.20866205,58497.0,58496.0,0.0014]
[1725277709629,1.20501,58497.0,58496.0,0.0014]
[1725277709927,1.20501,58497.0,58496.0,0.14962125]
[1725277710625,1.11501,58497.0,58496.0,0.14962125]
[1725277710927,1.20501,58497.0,58496.0,0.0984]
[1725277712331,1.20501,58497.0,58496.0,0.14962377]
[1725277715824,0.84421,58497.0,58496.0,0.14962377]
[1725277716632,0.84421,58497.0,58496.0,0.15324754]
[1725277717233,0.84421,58497.0,58496.0,0.10554754]
[1725277718932,0.84421,58497.0,58496.0,0.00502377]
[1725277719132,0.84421,58497.0,58496.0,0.05261403]
[1725277720235,0.84421,58497.0,58496.0,0.05261319]
[1725277720633,0.84421,58497.0,58496.0,0.0014]
[1725277720826,0.84421,58497.0,58496.0,0.05262573]
[1725277721835,0.84421,58497.0,58496.0,0.0014]
[1725277724331,0.84221,58497.0,58496.0,0.0014]
[1725277725039,0.85021,58497.0,58496.0,0.0024]
[1725277726939,0.145,58497.0,58496.0,0.263342]
[1725277727134,0.015,58497.0,58496.0,1.736982]
[1725277727332,0.015,58497.0,58496.0,1.78814345]
[1725277727637,0.00025642,58498.0,58497.0,0.17094]
[1725277727940,0.00025642,58498.0,58497.0,0.78153219]
[1725277728236,0.00025642,58498.0,58497.0,1.33038]
[1725277728542,0.00025642,58498.0,58497.0,0.13207]
[1725277729135,0.01025642,58498.0,58497.0,1.24591]
[1725277729334,0.01025642,58498.0,58497.0,0.13307]
[1725277730053,0.01125642,58498.0,58497.0,1.24691]
[1725277731038,0.01125642,58498.0,58497.0,1.33238]
[1725277731836,0.01125642,58498.0,58497.0,0.73238]
[1725277732148,0.01125642,58498.0,58497.0,1.33238]
[1725277732746,0.01125642,58498.0,58497.0,1.32290483]
[1725277733845,0.01125642,58498.0,58497.0,0.12459483]
[1725277735144,0.01125642,58498.0,58497.0,0.19265695]
[1725277735344,0.09672442,58498.0,58497.0,0.19265695]
[1725277736335,0.09672442,58498.0,58497.0,0.12459483]
[1725277736541,0.27219242,58498.0,58497.0,0.0024]
[1725277736744,0.27219242,58498.0,58497.0,0.05345166]
[1725277737253,0.27219242,58498.0,58497.0,0.0024]
[1725277738340,0.18672442,58498.0,58497.0,0.0024]
[1725277741544,0.27219242,58498.0,58497.0,0.0024]
[1725277741743,0.18672442,58498.0,58497.0,0.0024]
[1725277742439,0.27219242,58498.0,58497.0,0.0024]
[1725277746349,0.63299242,58498.0,58497.0,0.0024]
[1725277747152,0.31405655,58498.0,58497.0,0.0024]
[1725277747449,0.67485655,58498.0,58497.0,0.0024]
[1725277747844,0.63299242,58498.0,58497.0,0.0024]
[1725277748242,0.67485609,58498.0,58497.0,0.0024]
[1725277748450,0.63299242,58498.0,58497.0,0.0024]
[1725277749458,0.67485628,58498.0,58497.0,0.0024]
[1725277749652,0.63299242,58498.0,58497.0,0.0024]
[1725277752652,0.63299242,58498.0,58497.0,0.05345166]
[1725277755056,0.54752442,58498.0,58497.0,0.05345166]
[1725277755351,0.54752442,58498.0,58497.0,0.08787]
[1725277756457,0.09672442,58498.0,58497.0,0.15593212]
[1725277756666,0.01125642,58498.0,58497.0,0.15593212]
[1725277756855,0.01125642,58498.0,58497.0,0.08787]
[1725277759852,0.01125642,58498.0,58497.0,0.68618]
[1725277760048,0.01125642,58498.0,58497.0,1.28618]
[1725277760663,0.01125642,58498.0,58497.0,0.68618]
[1725277761753,0.01125642,58498.0,58497.0,0.17334]
[1725277762862,0.01025642,58498.0,58497.0,0.17234]
[1725277763063,0.01125642,58498.0,58497.0,0.17334]
[1725277763370,0.00525642,58498.0,58497.0,0.17234]
[1725277763869,0.00525642,58498.0,58497.0,0.08687]
[1725277768060,0.00525642,58498.0,58497.0,0.13357]
[1725277768873,0.00125642,58498.0,58497.0,0.13357]
[1725277769070,0.25966042,58498.0,58497.0,0.0014]
[1725277769968,0.25966042,58498.0,58497.0,0.0004]
[1725277770868,0.25966042,58498.0,58497.0,0.0014]
[1725277771462,0.26066042,58498.0,58497.0,0.0014]
[1725277772681,0.71146042,58498.0,58497.0,0.0014]
[1725277774869,0.62146042,58498.0,58497.0,0.0014]
[1725277775261,0.71146042,58498.0,58497.0,0.0014]
[1725277775664,0.75332356,58498.0,58497.0,0.0014]
[1725277777378,0.71146042,58498.0,58497.0,0.0014]
[1725277777767,0.75332356,58498.0,58497.0,0.0014]
[1725277777964,0.71146042,58498.0,58497.0,0.0014]
[1725277779281,0.75332368,58498.0,58497.0,0.0014]
[1725277780770,0.57785568,58498.0,58497.0,0.0014]
[1725277780972,0.66785568,58498.0,58497.0,0.0014]
[1725277781169,0.62599242,58498.0,58497.0,0.0014]
[1725277781879,0.62599242,58498.0,58497.0,0.08687]
[1725277782774,0.62599242,58498.0,58497.0,0.0014]
[1725277787275,0.62599242,58498.0,58497.0,0.08687]
[1725277787686,0.54052442,58498.0,58497.0,0.08687]
[1725277790776,0.58238674,58498.0,58497.0,0.08687]
[1725277791480,0.22158674,58498.0,58497.0,0.08687]
[1725277791679,0.58238674,58498.0,58497.0,0.08687]
[1725277791978,0.40691874,58498.0,58497.0,0.08687]
[1725277792178,0.00425642,58498.0,58497.0,0.08687]
[1725277792780,0.09858115,58498.0,58497.0,0.08687]
[1725277792982,0.18272079,58498.0,58497.0,0.08687]
[1725277794573,0.18272079,58498.0,58497.0,0.08587]
[1725277795294,0.17872079,58498.0,58497.0,0.08587]
[1725277795481,0.17972079,58498.0,58497.0,0.08587]
[1725277795989,0.18072079,58498.0,58497.0,0.08587]
[1725277796991,0.04411467,58498.0,58497.0,0.26134]
[1725277797288,0.04411467,58498.0,58497.0,1.45965]
[1725277797584,0.3608,58510.0,58509.0,0.085452]
[1725277797778,0.3608,58510.0,58509.0,0.175852]
[1725277799293,0.3628,58510.0,58509.0,0.175852]
[1725277799794,0.3618,58510.0,58509.0,0.175852]
[1725277799981,0.3628,58510.0,58509.0,0.175852]
[1725277800394,0.002,58510.0,58509.0,0.175852]
[1725277801881,0.001,58510.0,58509.0,0.262304]
[1725277802291,0.00025642,58515.0,58514.0,0.085445]
[1725277802596,0.00025642,58515.0,58514.0,0.175845]
[1725277803198,0.00025642,58515.0,58514.0,0.085845]
[1725277803997,0.08569942,58515.0,58514.0,0.085845]
[1725277804891,0.08669942,58515.0,58514.0,0.085845]
[1725277807490,0.08669942,58515.0,58514.0,0.175845]
[1725277807696,0.00125642,58515.0,58514.0,0.175845]
[1725277809089,0.08669942,58515.0,58514.0,0.175845]
[1725277809298,0.08669942,58515.0,58514.0,0.0004]
[1725277809486,0.08569942,58515.0,58514.0,0.0004]
[1725277810894,0.17114242,58515.0,58514.0,0.0004]
[1725277811097,0.53194242,58515.0,58514.0,0.0004]
[1725277812201,0.61738542,58515.0,58514.0,0.0004]
[1725277812897,0.65923787,58515.0,58514.0,0.0004]
[1725277814896,0.71169708,58515.0,58514.0,0.0004]
[1725277815094,0.66984463,58515.0,58514.0,0.0004]
[1725277815397,0.71169708,58515.0,58514.0,0.0004]
[1725277817497,0.88202467,58515.0,58514.0,0.0004]
[1725277818492,0.71113867,58515.0,58514.0,0.0004]
[1725277818700,0.18001108,58515.0,58514.0,0.175845]
[1725277818895,0.33337297,58515.0,58514.0,0.175845]
[1725277819589,0.333394,58515.0,58514.0,0.175845]
[1725277820390,0.18001108,58515.0,58514.0,0.175845]
[1725277820998,0.08569942,58515.0,58514.0,0.175845]
[1725277821793,0.00025642,58515.0,58514.0,0.175845]
[1725277821993,0.00025642,58515.0,58514.0,0.22696026]
[1725277822306,0.00025642,58515.0,58514.0,0.175845]
[1725277825610,0.00125642,58515.0,58514.0,0.176845]
[1725277825802,0.08669942,58515.0,58514.0,0.0014]
[1725277826006,1.46026542,58515.0,58514.0,0.0014]
[1725277826202,1.45926542,58515.0,58514.0,0.0004]
[1725277826404,1.46026542,58515.0,58514.0,0.0014]
[1725277828398,1.45926542,58515.0,58514.0,0.0004]
[1725277828604,1.46026542,58515.0,58514.0,0.0014]
[1725277830228,1.82106542,58515.0,58514.0,0.0014]
[1725277831604,1.95106542,58515.0,58514.0,0.0014]
[1725277833419,1.35106542,58515.0,58514.0,0.0014]
[1725277833716,0.83838542,58515.0,58514.0,0.0014]
[1725277835914,0.88024045,58515.0,58514.0,0.0014]
[1725277836110,1.01660785,58515.0,58514.0,0.0014]
[1725277836319,2.12928785,58515.0,58514.0,0.0014]
[1725277836511,0.88024045,58515.0,58514.0,0.0014]
[1725277836716,1.52928785,58515.0,58514.0,0.0014]
[1725277836919,1.01660785,58515.0,58514.0,0.0014]
[1725277837217,0.88024045,58515.0,58514.0,0.0014]
[1725277837807,1.01660785,58515.0,58514.0,0.0014]
[1725277838216,1.39292045,58515.0,58514.0,0.0014]
[1725277838721,0.88024045,58515.0,58514.0,0.0014]
[1725277841410,0.70479745,58515.0,58514.0,0.0014]
[1725277841617,0.57479745,58515.0,58514.0,0.0014]
[1725277841811,0.57479745,58515.0,58514.0,0.086845]
[1725277842013,0.48935445,58515.0,58514.0,0.086845]
[1725277843121,0.44749942,58515.0,58514.0,0.086845]
[1725277844024,0.44749942,58515.0,58514.0,0.0014]
[1725277844327,0.44749942,58515.0,58514.0,0.00490383]
[1725277844523,0.53294242,58515.0,58514.0,0.0014]
[1725277844825,1.49186542,58515.0,58514.0,0.0014]
[1725277845010,1.64926542,58515.0,58514.0,0.0014]
[1725277845619,1.65280481,58515.0,58514.0,0.0014]
[1725277846620,1.64926542,58515.0,58514.0,0.0014]
[1725277847927,1.13658542,58515.0,58514.0,0.0014]
[1725277851021,1.23090582,58515.0,58514.0,0.0014]
[1725277851422,1.40155865,58515.0,58514.0,0.0014]
[1725277852318,1.23090582,58515.0,58514.0,0.0014]
[1725277853526,0.50930554,58515.0,58514.0,0.0014]
[1725277853725,1.23090554,58515.0,58514.0,0.0014]
[1725277854525,1.40159145,58515.0,58514.0,0.0014]
[1725277855415,1.23090554,58515.0,58514.0,0.0014]
[1725277856216,1.18350554,58515.0,58514.0,0.0014]
[1725277858032,1.08918542,58515.0,58514.0,0.0014]
[1725277858821,1.17462842,58515.0,58514.0,0.0014]
[1725277859433,1.08918542,58515.0,58514.0,0.0014]
[1725277859621,2.20186542,58515.0,58514.0,0.0014]
[1725277859821,0.256365,58507.0,58506.0,0.00366641]
[1725277860125,0.256374,58505.0,58504.0,0.00025642]
[1725277860434,0.346774,58505.0,58504.0,0.00025642]
[1725277860831,0.342774,58505.0,58504.0,0.00025642]
[1725277861132,0.703574,58505.0,58504.0,0.00025642]
[1725277862123,0.702574,58505.0,58504.0,0.00025642]
[1725277862831,0.713574,58505.0,58504.0,0.00125642]
[1725277863328,0.716574,58505.0,58504.0,0.00125642]
[1725277863530,0.717574,58505.0,58504.0,0.00725642]
[1725277864231,0.716574,58505.0,58504.0,0.00125642]
[1725277864532,0.724574,58505.0,58504.0,0.00225642]
[1725277865925,0.810032,58505.0,58504.0,0.00225642]
[1725277866126,0.90436558,58505.0,58504.0,0.00225642]
[1725277866632,0.85189457,58505.0,58504.0,0.00225642]
[1725277868334,0.90436692,58505.0,58504.0,0.00225642]
[1725277868524,0.85189457,58505.0,58504.0,0.00225642]
[1725277870827,0.85189457,58505.0,58504.0,1e-08]
[1725277871431,0.85189687,58505.0,58504.0,1e-08]
[1725277871741,0.98842541,58505.0,58504.0,1e-08]
[1725277871936,0.85189687,58505.0,58504.0,1e-08]
[1725277872234,0.96189687,58505.0,58504.0,1e-08]
[1725277873043,0.920032,58505.0,58504.0,1e-08]
[1725277874728,0.559232,58505.0,58504.0,1e-08]
[1725277874934,1.280832,58505.0,58504.0,1e-08]
[1725277878642,0.559232,58505.0,58504.0,1e-08]
[1725277878844,1.280832,58505.0,58504.0,1e-08]
[1725277881135,1.43649068,58505.0,58504.0,1e-08]
[1725277885251,1.17557468,58505.0,58504.0,1e-08]
[1725277885448,1.08949017,58505.0,58504.0,1e-08]
[1725277885644,1.00879927,58505.0,58504.0,1e-08]
[1725277885835,0.95631811,58505.0,58504.0,0.08545901]
[1725277886043,1.00878692,58505.0,58504.0,0.08545901]
[1725277888153,0.914458,58505.0,58504.0,0.08545901]
[1725277888653,0.553658,58505.0,58504.0,0.08545901]
[1725277889036,0.553658,58505.0,58504.0,0.08905923]
[1725277894347,0.639116,58505.0,58504.0,0.08905923]
[1725277894940,0.639116,58505.0,58504.0,0.00360023]
[1725277896745,0.724574,58505.0,58504.0,0.00360023]
[1725277897452,0.639116,58505.0,58504.0,0.00360023]
[1725277898550,0.724574,58505.0,58504.0,0.00360023]
[1725277899954,0.724574,58505.0,58504.0,1e-08]
[1725277900455,0.854574,58505.0,58504.0,1e-08]
[1725277901041,2.052832,58505.0,58504.0,1e-08]
[1725277901355,0.085481,58489.0,58488.0,0.0918]
[1725277901539,0.175881,58489.0,58488.0,0.0918]
[1725277902655,0.184881,58489.0,58488.0,0.1028]
[1725277903755,0.190881,58489.0,58488.0,0.1028]
[1725277904848,0.189881,58489.0,58488.0,0.0938]
[1725277908951,0.275362,58489.0,58488.0,0.0938]
[1725277910057,0.189881,58489.0,58488.0,0.0938]